[Event "Swedish U16 Team Championship 2019 - Final"]
[Site "Molnlycke Kulturhus, Biblioteksgatan 2, Molnlycke, Sweden"]
[Date "2019.08.17"]
[Round "3.5"]
[White "Sandberg, Simon"]
[Black "Nord, Gabriel"]
[Result "0-1"]
[TimeControl "90 minutes + 30 seconds per move from move one."]
[WhiteElo "1375"]
[BlackElo "1762"]

1. e4 {[%clk 01:30:32]} {[%emt 00:00:27]} e5 {[%clk 01:30:50]} {[%emt
00:00:10]} 2. Nf3 {[%clk 01:30:36]} {[%emt 00:00:24]} Nc6 {[%clk 01:31:13]}
{[%emt 00:00:09]} 3. d4 {[%clk 01:30:56]} {[%emt 00:00:10]} exd4 {[%clk
01:31:34]} {[%emt 00:00:09]} 4. Nxd4 {[%clk 01:31:18]} {[%emt 00:00:07]} Bc5
{[%clk 01:31:00]} {[%emt 00:01:04]} 5. Be3 {[%clk 01:31:32]} {[%emt 00:00:16]}
Qf6 {[%clk 01:28:47]} {[%emt 00:02:42]} 6. c3 {[%clk 01:31:24]} {[%emt
00:00:39]} d6 {[%clk 01:23:09]} {[%emt 00:06:08]} 7. Be2 {[%clk 01:30:42]}
{[%emt 00:01:11]} Bd7 {[%clk 01:16:10]} {[%emt 00:07:30]} 8. O-O {[%clk
01:27:29]} {[%emt 00:03:43]} Nge7 {[%clk 01:11:32]} {[%emt 00:05:07]} 9. Nxc6
{[%clk 01:19:22]} {[%emt 00:08:37]} Bxc6 {[%clk 01:11:42]} {[%emt 00:00:20]} 10.
Bxc5 {[%clk 01:18:37]} {[%emt 00:01:14]} dxc5 {[%clk 01:12:05]} {[%emt
00:00:08]} 11. f3 {[%clk 01:16:42]} {[%emt 00:02:25]} Rd8 {[%clk 01:09:45]}
{[%emt 00:02:50]} 12. Qc1 {[%clk 01:06:56]} {[%emt 00:10:16]} Ng6 {[%clk
01:04:25]} {[%emt 00:05:50]} 13. Rd1 {[%clk 01:00:26]} {[%emt 00:07:00]} O-O
{[%clk 01:03:38]} {[%emt 00:01:17]} 14. Na3 {[%clk 00:52:10]} {[%emt 00:08:47]}
Nf4 {[%clk 01:01:25]} {[%emt 00:02:42]} 15. Bf1 {[%clk 00:52:02]} {[%emt
00:00:37]} a6 {[%clk 00:46:09]} {[%emt 00:15:46]} 16. Qe3 {[%clk 00:46:09]}
{[%emt 00:06:23]} Qg5 {[%clk 00:39:01]} {[%emt 00:07:38]} 17. Kh1 {[%clk
00:40:59]} {[%emt 00:05:41]} Rde8 {[%clk 00:27:38]} {[%emt 00:11:53]} 18. g3
{[%clk 00:33:44]} {[%emt 00:07:44]} Ne6 {[%clk 00:27:28]} {[%emt 00:00:41]} 19.
Qxg5 {[%clk 00:33:49]} {[%emt 00:00:25]} Nxg5 {[%clk 00:27:44]} {[%emt
00:00:14]} 20. Kg2 {[%clk 00:34:00]} {[%emt 00:00:18]} b5 {[%clk 00:24:53]}
{[%emt 00:03:22]} 21. b4 {[%clk 00:32:11]} {[%emt 00:02:19]} c4 {[%clk
00:24:31]} {[%emt 00:00:51]} 22. h4 {[%clk 00:25:58]} {[%emt 00:06:42]} Ne6
{[%clk 00:23:50]} {[%emt 00:01:12]} 23. Nc2 {[%clk 00:26:14]} {[%emt 00:00:14]}
f5 {[%clk 00:19:51]} {[%emt 00:04:29]} 24. exf5 {[%clk 00:22:51]} {[%emt
00:03:52]} Rxf5 {[%clk 00:20:00]} {[%emt 00:00:21]} 25. Ne1 {[%clk 00:20:25]}
{[%emt 00:02:56]} g5 {[%clk 00:16:44]} {[%emt 00:03:46]} 26. g4 {[%clk
00:16:48]} {[%emt 00:04:07]} Rf4 {[%clk 00:16:49]} {[%emt 00:00:25]} 27. Kg3
{[%clk 00:13:26]} {[%emt 00:03:52]} gxh4+ {[%clk 00:16:29]} {[%emt 00:00:50]}
28. Kxh4 {[%clk 00:13:35]} {[%emt 00:00:21]} Bxf3 {[%clk 00:16:15]} {[%emt
00:00:44]} 29. Nxf3 {[%clk 00:13:23]} {[%emt 00:00:42]} Rxf3 {[%clk 00:16:41]}
{[%emt 00:00:05]} 30. Rac1 {[%clk 00:13:29]} {[%emt 00:00:24]} Nf4 {[%clk
00:15:42]} {[%emt 00:01:28]} 31. g5 {[%clk 00:09:40]} {[%emt 00:04:19]} Re4
{[%clk 00:14:35]} {[%emt 00:01:38]} 32. Kg4 {[%clk 00:09:17]} {[%emt 00:00:53]}
Rfe3 {[%clk 00:10:30]} {[%emt 00:04:34]} 33. Rd4 {[%clk 00:07:52]} {[%emt
00:01:54]} Rxd4 {[%clk 00:10:07]} {[%emt 00:00:54]} 34. cxd4 {[%clk 00:07:55]}
{[%emt 00:00:27]} Nd3 {[%clk 00:10:12]} {[%emt 00:00:25]} 35. Bxd3 {[%clk
00:07:54]} {[%emt 00:00:31]} Rxd3 {[%clk 00:10:36]} {[%emt 00:00:06]} 36. Kf4
{[%clk 00:07:18]} {[%emt 00:01:06]} Rxd4+ {[%clk 00:10:58]} {[%emt 00:00:07]}
37. Ke5 {[%clk 00:07:33]} {[%emt 00:00:15]} Rg4 {[%clk 00:10:18]} {[%emt
00:01:10]} 38. Kf6 {[%clk 00:07:48]} {[%emt 00:00:15]} Rf4+ {[%clk 00:09:49]}
{[%emt 00:00:59]} 39. Ke5 {[%clk 00:08:11]} {[%emt 00:00:06]} Rf2 {[%clk
00:09:44]} {[%emt 00:00:35]} 40. Rd1 {[%clk 00:08:16]} {[%emt 00:00:26]} Kg7
{[%clk 00:08:54]} {[%emt 00:01:20]} 41. Rd7+ {[%clk 00:08:14]} {[%emt
00:00:33]} Kg6 {[%clk 00:07:48]} {[%emt 00:01:35]} 42. Rxc7 {[%clk 00:08:25]}
{[%emt 00:00:20]} Kxg5 {[%clk 00:08:06]} {[%emt 00:00:12]} 43. Rg7 {[%clk
00:08:33]} {[%emt 00:00:22]} Kh6 {[%clk 00:07:52]} {[%emt 00:00:45]} 44. Rg1
{[%clk 00:07:33]} {[%emt 00:01:29]} Rxa2 {[%clk 00:07:53]} {[%emt 00:00:29]} 45.
Rh1+ {[%clk 00:07:11]} {[%emt 00:00:53]} Kg7 {[%clk 00:08:06]} {[%emt
00:00:17]} 46. Rg1+ {[%clk 00:07:15]} {[%emt 00:00:26]} Kh8 {[%clk 00:07:36]}
{[%emt 00:01:00]} 47. Kf6 {[%clk 00:07:13]} {[%emt 00:00:32]} Rf2+ {[%clk
00:07:52]} {[%emt 00:00:13]} 48. Ke7 {[%clk 00:07:32]} {[%emt 00:00:11]} c3
{[%clk 00:07:33]} {[%emt 00:00:49]} 49. Rg3 {[%clk 00:07:29]} {[%emt 00:00:33]}
c2 {[%clk 00:07:13]} {[%emt 00:00:50]} 50. Rc3 {[%clk 00:07:52]} {[%emt
00:00:07]} h5 {[%clk 00:07:01]} {[%emt 00:00:41]} 51. Rc5 {[%clk 00:07:58]}
{[%emt 00:00:24]} Kg7 {[%clk 00:07:25]} {[%emt 00:00:06]} 52. Rg5 {[%clk
00:08:21]} {[%emt 00:00:07]} Kh6 {[%clk 00:07:42]} {[%emt 00:00:13]} 53. Rc5
{[%clk 00:08:36]} {[%emt 00:00:15]} h4 {[%clk 00:07:46]} {[%emt 00:00:27]} 54.
Rc6+ {[%clk 00:08:51]} {[%emt 00:00:15]} Kg5 {[%clk 00:08:08]} {[%emt
00:00:07]} 55. Rc5+ {[%clk 00:09:12]} {[%emt 00:00:10]} Kg4 {[%clk 00:08:30]}
{[%emt 00:00:08]} 0-1

[Event "Swedish U16 Team Championship 2019 - Final"]
[Site "Molnlycke Kulturhus, Biblioteksgatan 2, Molnlycke, Sweden"]
[Date "2019.08.17"]
[Round "3.6"]
[White "Anfalt, Erik"]
[Black "Backlund, Elias"]
[Result "1-0"]
[TimeControl "90 minutes + 30 seconds per move from move one."]
[WhiteElo "1558"]
[BlackElo "1603"]

1. e4 {[%clk 01:30:58]} {[%emt 00:26:18]} d5 {[%clk 01:30:55]} {[%emt
00:00:06]} 2. exd5 {[%clk 01:31:21]} {[%emt 00:00:07]} Qxd5 {[%clk 01:31:19]}
{[%emt 00:00:05]} 3. Nc3 {[%clk 01:31:29]} {[%emt 00:00:22]} Qa5 {[%clk
01:31:40]} {[%emt 00:00:09]} 4. Nf3 {[%clk 01:31:39]} {[%emt 00:00:20]} Bg4
{[%clk 01:32:03]} {[%emt 00:00:08]} 5. Be2 {[%clk 01:31:32]} {[%emt 00:00:37]}
Nf6 {[%clk 01:31:17]} {[%emt 00:01:16]} 6. h3 {[%clk 01:31:28]} {[%emt
00:00:33]} Bh5 {[%clk 01:31:21]} {[%emt 00:00:26]} 7. O-O {[%clk 01:31:11]}
{[%emt 00:00:48]} e6 {[%clk 01:30:48]} {[%emt 00:01:02]} 8. Nd4 {[%clk
01:16:16]} {[%emt 00:15:26]} Bg6 {[%clk 01:25:56]} {[%emt 00:05:22]} 9. Nb3
{[%clk 01:14:50]} {[%emt 00:01:55]} Qb6 {[%clk 01:22:17]} {[%emt 00:04:08]} 10.
d3 {[%clk 01:12:58]} {[%emt 00:02:23]} c6 {[%clk 01:19:13]} {[%emt 00:03:34]}
11. Be3 {[%clk 01:09:47]} {[%emt 00:03:41]} Qc7 {[%clk 01:18:17]} {[%emt
00:01:26]} 12. Qd2 {[%clk 01:06:26]} {[%emt 00:03:51]} Bd6 {[%clk 01:14:37]}
{[%emt 00:04:09]} 13. Rad1 {[%clk 01:03:23]} {[%emt 00:03:34]} O-O {[%clk
01:13:40]} {[%emt 00:01:27]} 14. Bf3 {[%clk 00:57:27]} {[%emt 00:06:26]} Rd8
{[%clk 01:09:42]} {[%emt 00:04:27]} 15. Bg5 {[%clk 00:53:39]} {[%emt 00:04:18]}
Be7 {[%clk 01:08:04]} {[%emt 00:02:08]} 16. Qe2 {[%clk 00:46:04]} {[%emt
00:08:04]} Nd5 {[%clk 01:04:37]} {[%emt 00:03:57]} 17. Bxe7 {[%clk 00:45:01]}
{[%emt 00:01:33]} Qxe7 {[%clk 01:04:12]} {[%emt 00:00:56]} 18. Ne4 {[%clk
00:39:48]} {[%emt 00:05:43]} Nd7 {[%clk 00:58:57]} {[%emt 00:05:44]} 19. c4
{[%clk 00:36:52]} {[%emt 00:03:27]} N5f6 {[%clk 00:52:35]} {[%emt 00:06:52]} 20.
d4 {[%clk 00:34:44]} {[%emt 00:02:38]} Nb6 {[%clk 00:46:14]} {[%emt 00:06:51]}
21. c5 {[%clk 00:32:32]} {[%emt 00:02:43]} Nbd5 {[%clk 00:42:08]} {[%emt
00:04:36]} 22. Nd6 {[%clk 00:32:15]} {[%emt 00:00:47]} Ne8 {[%clk 00:39:50]}
{[%emt 00:02:48]} 23. Bxd5 {[%clk 00:31:16]} {[%emt 00:01:29]} cxd5 {[%clk
00:39:34]} {[%emt 00:00:45]} 24. Nb5 {[%clk 00:30:38]} {[%emt 00:01:08]} a6
{[%clk 00:38:46]} {[%emt 00:01:18]} 25. Nc3 {[%clk 00:30:47]} {[%emt 00:00:19]}
Qg5 {[%clk 00:36:43]} {[%emt 00:02:34]} 26. Qg4 {[%clk 00:29:22]} {[%emt
00:01:55]} Qxg4 {[%clk 00:35:25]} {[%emt 00:01:49]} 27. hxg4 {[%clk 00:29:49]}
{[%emt 00:00:02]} Bc2 {[%clk 00:33:17]} {[%emt 00:02:37]} 28. Rd2 {[%clk
00:29:45]} {[%emt 00:00:35]} Bxb3 {[%clk 00:31:30]} {[%emt 00:02:17]} 29. axb3
{[%clk 00:30:13]} {[%emt 00:00:02]} Nf6 {[%clk 00:31:26]} {[%emt 00:00:34]} 30.
f3 {[%clk 00:30:38]} {[%emt 00:00:06]} Nd7 {[%clk 00:31:41]} {[%emt 00:00:15]}
31. f4 {[%clk 00:28:50]} {[%emt 00:02:17]} Rdc8 {[%clk 00:27:41]} {[%emt
00:04:30]} 32. f5 {[%clk 00:28:00]} {[%emt 00:01:21]} h6 {[%clk 00:23:26]}
{[%emt 00:04:44]} 33. fxe6 {[%clk 00:28:10]} {[%emt 00:00:19]} fxe6 {[%clk
00:23:47]} {[%emt 00:00:09]} 34. Re2 {[%clk 00:28:16]} {[%emt 00:00:24]} Re8
{[%clk 00:23:00]} {[%emt 00:01:17]} 35. Rfe1 {[%clk 00:28:19]} {[%emt
00:00:26]} Kf7 {[%clk 00:22:56]} {[%emt 00:00:35]} 36. Kf2 {[%clk 00:27:09]}
{[%emt 00:01:40]} Rad8 {[%clk 00:19:22]} {[%emt 00:04:03]} 37. Kg3 {[%clk
00:27:03]} {[%emt 00:00:36]} g5 {[%clk 00:19:03]} {[%emt 00:00:49]} 38. Rf1+
{[%clk 00:27:02]} {[%emt 00:00:31]} Kg7 {[%clk 00:18:53]} {[%emt 00:00:40]} 39.
Ref2 {[%clk 00:26:26]} {[%emt 00:01:05]} Rf8 {[%clk 00:17:57]} {[%emt
00:01:27]} 40. Re1 {[%clk 00:25:00]} {[%emt 00:01:53]} Rxf2 {[%clk 00:16:48]}
{[%emt 00:01:42]} 41. Kxf2 {[%clk 00:25:27]} {[%emt 00:00:03]} Rf8+ {[%clk
00:17:00]} {[%emt 00:00:18]} 42. Kg3 {[%clk 00:25:50]} {[%emt 00:00:07]} Rf6
{[%clk 00:16:46]} {[%emt 00:00:43]} 43. b4 {[%clk 00:23:59]} {[%emt 00:02:21]}
b5 {[%clk 00:14:50]} {[%emt 00:02:27]} 44. c6 {[%clk 00:22:00]} {[%emt
00:02:29]} Nb6 {[%clk 00:14:51]} {[%emt 00:00:28]} 45. Ra1 {[%clk 00:22:27]}
{[%emt 00:00:04]} e5 {[%clk 00:11:47]} {[%emt 00:03:34]} 46. Rxa6 {[%clk
00:22:14]} {[%emt 00:00:43]} exd4 {[%clk 00:11:49]} {[%emt 00:00:29]} 47. Rxb6
{[%clk 00:21:55]} {[%emt 00:00:48]} dxc3 {[%clk 00:11:52]} {[%emt 00:00:27]} 48.
bxc3 {[%clk 00:22:22]} {[%emt 00:00:03]} Kg6 {[%clk 00:10:50]} {[%emt
00:01:32]} 49. c7 {[%clk 00:22:42]} {[%emt 00:00:10]} Rxb6 {[%clk 00:10:52]}
{[%emt 00:00:28]} 50. c8=Q {[%clk 00:23:09]} {[%emt 00:00:03]} Rd6 {[%clk
00:10:02]} {[%emt 00:01:20]} 51. Qf5+ {[%clk 00:23:27]} {[%emt 00:00:12]} Kg7
{[%clk 00:09:39]} {[%emt 00:00:53]} 52. Qe5+ {[%clk 00:23:55]} {[%emt
00:00:01]} Rf6 {[%clk 00:09:55]} {[%emt 00:00:14]} 53. Qxd5 {[%clk 00:24:04]}
{[%emt 00:00:22]} Rb6 {[%clk 00:09:05]} {[%emt 00:01:20]} 54. Qe5+ {[%clk
00:24:20]} {[%emt 00:00:13]} Kg6 {[%clk 00:09:01]} {[%emt 00:00:35]} 55. Qc5
{[%clk 00:23:46]} {[%emt 00:01:02]} Re6 {[%clk 00:08:20]} {[%emt 00:01:12]} 56.
Qf5+ {[%clk 00:23:55]} {[%emt 00:00:21]} Kg7 {[%clk 00:08:07]} {[%emt
00:00:43]} 57. Qxe6 {[%clk 00:24:23]} {[%emt 00:00:02]} h5 {[%clk 00:08:26]}
{[%emt 00:00:11]} 58. gxh5 {[%clk 00:24:46]} {[%emt 00:00:06]} g4 {[%clk
00:08:55]} {[%emt 00:00:01]} 59. Kxg4 {[%clk 00:24:28]} {[%emt 00:00:48]} Kf8
{[%clk 00:09:12]} {[%emt 00:00:13]} 60. Qd7 {[%clk 00:24:53]} {[%emt 00:00:05]}
Kg8 {[%clk 00:09:33]} {[%emt 00:00:09]} 61. Kg5 {[%clk 00:24:56]} {[%emt
00:00:27]} Kh8 {[%clk 00:09:32]} {[%emt 00:00:31]} 62. Kh6 {[%clk 00:25:20]}
{[%emt 00:00:06]} Kg8 {[%clk 00:09:52]} {[%emt 00:00:10]} 63. Qe8# {[%clk
00:25:49]} {[%emt 00:00:01]} 1-0

[Event "Swedish U16 Team Championship 2019 - Final"]
[Site "Molnlycke Kulturhus, Biblioteksgatan 2, Molnlycke, Sweden"]
[Date "2019.08.17"]
[Round "3.7"]
[White "Rasti, Arvin"]
[Black "Soderstrom, Adrian"]
[Result "1/2-1/2"]
[TimeControl "90 minutes + 30 seconds per move from move one."]
[WhiteElo "2116"]
[BlackElo "1970"]

1. d4 {[%clk 01:30:13]} {[%emt 00:00:46]} g6 {[%clk 01:30:10]} {[%emt
00:00:51]} 2. e4 {[%clk 01:29:53]} {[%emt 00:00:50]} Nf6 {[%clk 01:30:20]}
{[%emt 00:00:19]} 3. Nc3 {[%clk 01:29:44]} {[%emt 00:00:39]} d5 {[%clk
01:30:43]} {[%emt 00:00:08]} 4. Bd3 {[%clk 01:24:02]} {[%emt 00:06:12]} c5
{[%clk 01:14:30]} {[%emt 00:16:42]} 5. dxc5 {[%clk 01:16:16]} {[%emt 00:08:17]}
d4 {[%clk 01:08:43]} {[%emt 00:06:17]} 6. Nce2 {[%clk 01:16:38]} {[%emt
00:00:07]} Nc6 {[%clk 01:01:05]} {[%emt 00:08:09]} 7. Bg5 {[%clk 01:09:55]}
{[%emt 00:07:13]} Nd7 {[%clk 00:58:57]} {[%emt 00:02:38]} 8. Nf3 {[%clk
01:07:40]} {[%emt 00:02:45]} Bg7 {[%clk 00:55:06]} {[%emt 00:04:21]} 9. O-O
{[%clk 01:01:07]} {[%emt 00:07:04]} Nxc5 {[%clk 00:54:09]} {[%emt 00:01:26]} 10.
Qd2 {[%clk 00:58:26]} {[%emt 00:03:11]} h6 {[%clk 00:50:56]} {[%emt 00:03:43]}
11. Bh4 {[%clk 00:58:10]} {[%emt 00:00:47]} O-O {[%clk 00:46:45]} {[%emt
00:04:41]} 12. Ne1 {[%clk 00:54:51]} {[%emt 00:03:48]} g5 {[%clk 00:42:29]}
{[%emt 00:04:46]} 13. Bg3 {[%clk 00:55:15]} {[%emt 00:00:07]} e5 {[%clk
00:42:33]} {[%emt 00:00:25]} 14. b4 {[%clk 00:52:03]} {[%emt 00:03:42]} Nxd3
{[%clk 00:39:48]} {[%emt 00:03:14]} 15. Nxd3 {[%clk 00:52:19]} {[%emt
00:00:14]} f6 {[%clk 00:28:01]} {[%emt 00:12:16]} 16. Rfd1 {[%clk 00:48:31]}
{[%emt 00:04:18]} b6 {[%clk 00:22:15]} {[%emt 00:06:16]} 17. c3 {[%clk
00:44:24]} {[%emt 00:04:37]} Be6 {[%clk 00:19:56]} {[%emt 00:02:48]} 18. b5
{[%clk 00:39:48]} {[%emt 00:05:07]} dxc3 {[%clk 00:19:02]} {[%emt 00:01:25]} 19.
Qxc3 {[%clk 00:38:58]} {[%emt 00:01:20]} Nd4 {[%clk 00:19:17]} {[%emt
00:00:14]} 20. Nxd4 {[%clk 00:36:42]} {[%emt 00:02:47]} Qxd4 {[%clk 00:19:01]}
{[%emt 00:00:46]} 21. Qxd4 {[%clk 00:35:26]} {[%emt 00:01:46]} exd4 {[%clk
00:19:28]} {[%emt 00:00:02]} 22. f4 {[%clk 00:30:15]} {[%emt 00:05:41]} Bc4
{[%clk 00:16:42]} {[%emt 00:03:15]} 23. a4 {[%clk 00:22:48]} {[%emt 00:07:58]}
Rae8 {[%clk 00:16:05]} {[%emt 00:01:06]} 24. Nf2 {[%clk 00:21:43]} {[%emt
00:01:36]} f5 {[%clk 00:11:11]} {[%emt 00:05:23]} 25. e5 {[%clk 00:17:20]}
{[%emt 00:04:54]} gxf4 {[%clk 00:10:15]} {[%emt 00:01:26]} 26. Bxf4 {[%clk
00:17:49]} {[%emt 00:00:01]} Bxe5 {[%clk 00:09:53]} {[%emt 00:00:51]} 27. Bxe5
{[%clk 00:18:14]} {[%emt 00:00:06]} Rxe5 {[%clk 00:10:17]} {[%emt 00:00:06]} 28.
Rxd4 {[%clk 00:18:35]} {[%emt 00:00:09]} Rfe8 {[%clk 00:08:13]} {[%emt
00:02:33]} 29. h3 {[%clk 00:14:52]} {[%emt 00:04:13]} Re1+ {[%clk 00:07:29]}
{[%emt 00:01:14]} 30. Rxe1 {[%clk 00:15:12]} {[%emt 00:00:10]} Rxe1+ {[%clk
00:07:58]} {[%emt 00:00:01]} 31. Kh2 {[%clk 00:15:30]} {[%emt 00:00:11]} Bb3
{[%clk 00:07:51]} {[%emt 00:00:37]} 32. Rb4 {[%clk 00:13:51]} {[%emt 00:02:09]}
Bc2 {[%clk 00:06:57]} {[%emt 00:01:26]} 33. Rd4 {[%clk 00:10:37]} {[%emt
00:03:44]} Bb3 {[%clk 00:06:54]} {[%emt 00:00:33]} 34. Kg3 {[%clk 00:09:45]}
{[%emt 00:01:21]} Kf7 {[%clk 00:05:40]} {[%emt 00:01:45]} 35. Nd3 {[%clk
00:06:59]} {[%emt 00:03:15]} Re4 {[%clk 00:05:14]} {[%emt 00:00:57]} 36. Rxe4
{[%clk 00:06:56]} {[%emt 00:00:33]} fxe4 {[%clk 00:04:48]} {[%emt 00:00:57]} 37.
Nb2 {[%clk 00:07:01]} {[%emt 00:00:24]} Ke6 {[%clk 00:05:06]} {[%emt 00:00:10]}
38. Kf4 {[%clk 00:07:24]} {[%emt 00:00:08]} Kd5 {[%clk 00:05:30]} {[%emt
00:00:07]} 39. Ke3 {[%clk 00:07:49]} {[%emt 00:00:05]} h5 {[%clk 00:05:11]}
{[%emt 00:00:49]} 40. g3 {[%clk 00:07:43]} {[%emt 00:00:36]} Ke5 {[%clk
00:03:28]} {[%emt 00:02:13]} 41. g4 {[%clk 00:06:06]} {[%emt 00:02:07]} h4
{[%clk 00:03:50]} {[%emt 00:00:07]} 42. g5 {[%clk 00:06:22]} {[%emt 00:00:14]}
Be6 {[%clk 00:04:03]} {[%emt 00:00:17]} 43. g6 {[%clk 00:04:30]} {[%emt
00:02:22]} Kf6 {[%clk 00:03:30]} {[%emt 00:01:03]} 44. Kxe4 {[%clk 00:04:31]}
{[%emt 00:00:30]} Kxg6 {[%clk 00:03:45]} {[%emt 00:00:14]} 45. Kf4 {[%clk
00:03:51]} {[%emt 00:01:10]} Bxh3 {[%clk 00:04:07]} {[%emt 00:00:08]} 46. Nc4
{[%clk 00:03:34]} {[%emt 00:00:47]} 1/2-1/2

[Event "Swedish U16 Team Championship 2019 - Final"]
[Site "Molnlycke Kulturhus, Biblioteksgatan 2, Molnlycke, Sweden"]
[Date "2019.08.17"]
[Round "3.8"]
[White "Falkevall, Axel"]
[Black "Lindholm, Gustav"]
[Result "1-0"]
[TimeControl "90 minutes + 30 seconds per move from move one."]
[WhiteElo "2046"]
[BlackElo "2006"]

1. e4 {[%clk 01:30:57]} {[%emt 00:00:03]} d5 {[%clk 01:30:52]} {[%emt
00:00:06]} 2. exd5 {[%clk 01:31:25]} {[%emt 00:00:04]} Qxd5 {[%clk 01:31:09]}
{[%emt 00:00:13]} 3. Nc3 {[%clk 01:31:52]} {[%emt 00:00:04]} Qd6 {[%clk
01:31:24]} {[%emt 00:00:14]} 4. d4 {[%clk 01:32:18]} {[%emt 00:00:04]} Nf6
{[%clk 01:31:43]} {[%emt 00:00:11]} 5. Nf3 {[%clk 01:32:41]} {[%emt 00:00:07]}
c6 {[%clk 01:30:59]} {[%emt 00:01:13]} 6. Ne5 {[%clk 01:32:31]} {[%emt
00:00:41]} Nbd7 {[%clk 01:31:20]} {[%emt 00:00:09]} 7. Nc4 {[%clk 01:32:49]}
{[%emt 00:00:09]} Qc7 {[%clk 01:31:36]} {[%emt 00:00:17]} 8. Qf3 {[%clk
01:29:34]} {[%emt 00:03:44]} Nb6 {[%clk 01:29:28]} {[%emt 00:02:38]} 9. Ne5
{[%clk 01:27:28]} {[%emt 00:02:37]} e6 {[%clk 01:23:15]} {[%emt 00:06:43]} 10.
Bf4 {[%clk 01:23:21]} {[%emt 00:04:37]} Bd6 {[%clk 01:21:19]} {[%emt 00:02:25]}
11. Bg3 {[%clk 01:19:45]} {[%emt 00:04:07]} Nbd5 {[%clk 01:12:41]} {[%emt
00:09:07]} 12. Nxd5 {[%clk 01:15:48]} {[%emt 00:04:27]} exd5 {[%clk 01:09:40]}
{[%emt 00:03:31]} 13. Bd3 {[%clk 01:10:45]} {[%emt 00:05:33]} O-O {[%clk
01:02:43]} {[%emt 00:07:26]} 14. O-O {[%clk 01:07:29]} {[%emt 00:03:47]} Qb6
{[%clk 00:47:05]} {[%emt 00:16:08]} 15. c3 {[%clk 01:00:34]} {[%emt 00:07:25]}
Qxb2 {[%clk 00:35:46]} {[%emt 00:11:48]} 16. Rfb1 {[%clk 01:00:00]} {[%emt
00:01:02]} Qa3 {[%clk 00:34:20]} {[%emt 00:01:59]} 17. Rb3 {[%clk 00:58:10]}
{[%emt 00:02:19]} Qa5 {[%clk 00:28:45]} {[%emt 00:06:05]} 18. Nxc6 {[%clk
00:55:17]} {[%emt 00:03:25]} bxc6 {[%clk 00:28:29]} {[%emt 00:00:46]} 19. Bxd6
{[%clk 00:55:41]} {[%emt 00:00:05]} Re8 {[%clk 00:26:48]} {[%emt 00:02:12]} 20.
Be5 {[%clk 00:41:34]} {[%emt 00:14:37]} Nd7 {[%clk 00:16:31]} {[%emt 00:10:47]}
21. Bxh7+ {[%clk 00:34:37]} {[%emt 00:07:28]} Kxh7 {[%clk 00:13:04]} {[%emt
00:03:57]} 22. Qxf7 {[%clk 00:34:53]} {[%emt 00:00:14]} Rxe5 {[%clk 00:10:50]}
{[%emt 00:02:44]} 23. dxe5 {[%clk 00:34:39]} {[%emt 00:00:44]} Nc5 {[%clk
00:08:47]} {[%emt 00:02:32]} 24. Rb4 {[%clk 00:33:17]} {[%emt 00:01:50]} Qd8
{[%clk 00:03:27]} {[%emt 00:05:52]} 25. Qh5+ {[%clk 00:31:47]} {[%emt
00:02:00]} Kg8 {[%clk 00:03:52]} {[%emt 00:00:06]} 26. Rh4 {[%clk 00:30:47]}
{[%emt 00:01:30]} Bf5 {[%clk 00:02:38]} {[%emt 00:01:45]} 27. g3 {[%clk
00:22:49]} {[%emt 00:08:28]} Qf8 {[%clk 00:01:08]} {[%emt 00:01:59]} 28. Re1
{[%clk 00:21:33]} {[%emt 00:01:43]} Rb8 {[%clk 00:00:54]} {[%emt 00:00:46]} 29.
e6 {[%clk 00:19:34]} {[%emt 00:02:30]} Nxe6 {[%clk 00:00:38]} {[%emt 00:00:46]}
30. Rxe6 {[%clk 00:19:12]} {[%emt 00:00:52]} Bxe6 {[%clk 00:00:33]} {[%emt
00:00:35]} 31. Qh8+ {[%clk 00:19:19]} {[%emt 00:00:19]} Kf7 {[%clk 00:00:57]}
{[%emt 00:00:09]} 32. Rf4+ {[%clk 00:19:40]} {[%emt 00:00:09]} Ke7 {[%clk
00:01:04]} {[%emt 00:00:23]} 33. Rxf8 {[%clk 00:20:01]} {[%emt 00:00:10]} Rxf8
{[%clk 00:01:20]} {[%emt 00:00:13]} 34. Qxg7+ {[%clk 00:20:14]} {[%emt
00:00:17]} Rf7 {[%clk 00:01:27]} {[%emt 00:00:23]} 35. Qg5+ {[%clk 00:20:15]}
{[%emt 00:00:28]} 1-0